[Event "GrandPrix_29.05"]
[Site "Chess.com"]
[Date "2020.05.29"]
[Round "5"]
[White "Todorovic1991"]
[Black "Aliakbarov_Anar"]
[Result "0-1"]
[WhiteElo "1670"]
[BlackElo "2135"]
[TimeControl "600+2"]
[EndTime "11:26:26 PDT"]
[Termination "Aliakbarov_Anar won by resignation"]

1. Nf3 {[%clk 0:10:01.9]} 1... d5 {[%clk 0:09:55.5]} 2. c4 {[%clk 0:10:02]} 2...
e6 {[%clk 0:09:41.8]} 3. d4 {[%clk 0:10:01.4]} 3... Nf6 {[%clk 0:09:42]} 4. Nc3
{[%clk 0:10:01.3]} 4... Bb4 {[%clk 0:09:42.5]} 5. Bg5 {[%clk 0:10:01.2]} 5...
Nbd7 {[%clk 0:09:42.4]} 6. cxd5 {[%clk 0:10:00.9]} 6... exd5 {[%clk 0:09:42.9]}
7. e3 {[%clk 0:10:01.8]} 7... c5 {[%clk 0:09:42.7]} 8. Bd3 {[%clk 0:10:02.5]}
8... Qa5 {[%clk 0:09:43.3]} 9. O-O {[%clk 0:10:01.3]} 9... Bxc3 {[%clk
0:09:43.3]} 10. bxc3 {[%clk 0:10:00.8]} 10... c4 {[%clk 0:09:44.6]} 11. Bc2
{[%clk 0:09:43.2]} 11... Qxc3 {[%clk 0:09:23.8]} 12. Qb1 {[%clk 0:09:42.9]}
12... O-O {[%clk 0:08:28.9]} 13. Rc1 {[%clk 0:09:32.2]} 13... Qa3 {[%clk
0:08:08.5]} 14. Ne5 {[%clk 0:09:31.6]} 14... h6 {[%clk 0:07:52.3]} 15. Nxd7
{[%clk 0:09:25.9]} 15... Nxd7 {[%clk 0:07:49.3]} 16. Bf4 {[%clk 0:09:23.9]}
16... Qe7 {[%clk 0:07:38.3]} 17. Qb5 {[%clk 0:09:16.5]} 17... Nf6 {[%clk
0:07:28]} 18. a4 {[%clk 0:09:17.2]} 18... b6 {[%clk 0:07:14.6]} 19. Be5 {[%clk
0:08:56.2]} 19... Rd8 {[%clk 0:06:56.6]} 20. Qc6 {[%clk 0:08:04.8]} 20... Ba6
{[%clk 0:05:57.6]} 21. Bxf6 {[%clk 0:07:22.1]} 21... gxf6 {[%clk 0:05:44.4]} 22.
a5 {[%clk 0:07:15.1]} 22... Rac8 {[%clk 0:05:44.1]} 23. Qa4 {[%clk 0:07:14.9]}
23... b5 {[%clk 0:05:45.5]} 24. Qa2 {[%clk 0:07:14.8]} 24... b4 {[%clk
0:05:46.4]} 25. Bf5 {[%clk 0:07:13.3]} 25... Rb8 {[%clk 0:05:11]} 26. Qe2 {[%clk
0:07:10.4]} 26... Qf8 {[%clk 0:05:11.8]} 27. Rab1 {[%clk 0:06:55]} 27... Bc8
{[%clk 0:05:04.4]} 28. Bxc8 {[%clk 0:04:33.4]} 28... Rdxc8 {[%clk 0:04:52.6]}
29. e4 {[%clk 0:04:34.1]} 29... c3 {[%clk 0:04:42.8]} 30. exd5 {[%clk
0:04:32.8]} 30... b3 {[%clk 0:04:41.8]} 31. Qd3 {[%clk 0:04:29.7]} 31... Qb4
{[%clk 0:04:17.9]} 32. d6 {[%clk 0:04:05.7]} 32... c2 {[%clk 0:03:55.8]} 33. Rb2
{[%clk 0:03:58.9]} 33... Re8 {[%clk 0:03:43.7]} 34. Kf1 {[%clk 0:03:44.7]} 34...
Re1+ {[%clk 0:02:59.5]} 35. Rxe1 {[%clk 0:03:40.3]} 35... Qxe1+ {[%clk
0:03:00.6]} 36. Kxe1 {[%clk 0:03:37.2]} 36... c1=Q+ {[%clk 0:03:01]} 37. Qd1
{[%clk 0:03:32]} 37... Qxb2 {[%clk 0:02:45.9]} 38. d7 {[%clk 0:03:32.2]} 38...
Qc3+ {[%clk 0:02:24.1]} 0-1

[Event "GrandPrix_29.05"]
[Site "Chess.com"]
[Date "2020.05.29"]
[Round "5"]
[White "MirMan90"]
[Black "Pash2015"]
[Result "0-1"]
[WhiteElo "2239"]
[BlackElo "2220"]
[TimeControl "600+2"]
[EndTime "11:26:55 PDT"]
[Termination "Pash2015 won by resignation"]

1. e4 {[%clk 0:10:01.9]} 1... c5 {[%clk 0:09:59.6]} 2. Nf3 {[%clk 0:10:02.9]}
2... a6 {[%clk 0:10:00.9]} 3. Nc3 {[%clk 0:10:01.4]} 3... Nc6 {[%clk 0:09:59.9]}
4. d4 {[%clk 0:09:59.7]} 4... cxd4 {[%clk 0:10:01.8]} 5. Nxd4 {[%clk 0:10:01.2]}
5... e5 {[%clk 0:10:03]} 6. Nf5 {[%clk 0:09:50]} 6... d6 {[%clk 0:10:02.8]} 7.
Bc4 {[%clk 0:09:30.8]} 7... Nf6 {[%clk 0:10:02]} 8. Bg5 {[%clk 0:09:21.5]} 8...
Bxf5 {[%clk 0:10:00.9]} 9. exf5 {[%clk 0:09:20]} 9... Be7 {[%clk 0:10:01.3]} 10.
Bxf6 {[%clk 0:09:12.8]} 10... Bxf6 {[%clk 0:10:01.7]} 11. Bd5 {[%clk 0:07:43]}
11... O-O {[%clk 0:09:50.5]} 12. O-O {[%clk 0:07:20.8]} 12... Qc7 {[%clk
0:09:46.3]} 13. Ne4 {[%clk 0:07:12.7]} 13... Ne7 {[%clk 0:09:35.5]} 14. c4
{[%clk 0:06:37.6]} 14... Nxd5 {[%clk 0:09:26.2]} 15. Qxd5 {[%clk 0:06:33]} 15...
Be7 {[%clk 0:09:27.5]} 16. a4 {[%clk 0:06:29.2]} 16... Rac8 {[%clk 0:09:17.1]}
17. b3 {[%clk 0:06:28.2]} 17... Qd7 {[%clk 0:09:16.9]} 18. Rfe1 {[%clk
0:05:56.8]} 18... Rfd8 {[%clk 0:09:11.1]} 19. Rad1 {[%clk 0:05:53.1]} 19... Qxf5
{[%clk 0:09:06.7]} 20. Qxb7 {[%clk 0:05:50.9]} 20... Qe6 {[%clk 0:09:07.7]} 21.
Qd5 {[%clk 0:05:34.5]} 21... Rb8 {[%clk 0:09:04.1]} 22. Re3 {[%clk 0:05:26]}
22... Qxd5 {[%clk 0:08:57.7]} 23. Rxd5 {[%clk 0:05:24.6]} 23... f5 {[%clk
0:08:59]} 24. Nd2 {[%clk 0:05:04.6]} 24... Kf7 {[%clk 0:09:00]} 25. Nf3 {[%clk
0:04:51.6]} 25... h6 {[%clk 0:08:52.7]} 26. Kf1 {[%clk 0:04:41.7]} 26... g5
{[%clk 0:08:45.8]} 27. h3 {[%clk 0:04:40]} 27... h5 {[%clk 0:08:42.9]} 28. g4
{[%clk 0:04:31]} 28... hxg4 {[%clk 0:08:38.4]} 29. hxg4 {[%clk 0:04:32.4]} 29...
fxg4 {[%clk 0:08:40.3]} 30. Nh2 {[%clk 0:04:32.9]} 30... Rh8 {[%clk 0:08:29.5]}
31. Kg2 {[%clk 0:04:30.2]} 31... Rh4 {[%clk 0:08:25.6]} 32. Rdd3 {[%clk
0:04:27.2]} 32... Ke6 {[%clk 0:08:17.7]} 33. Nf1 {[%clk 0:04:25.2]} 33... Rbh8
{[%clk 0:08:11.9]} 34. b4 {[%clk 0:04:23.1]} 34... g3 {[%clk 0:07:51.2]} 35. Rc3
{[%clk 0:04:13.9]} 35... gxf2 {[%clk 0:07:35.1]} 36. Kxf2 {[%clk 0:04:05]} 36...
Rf4+ {[%clk 0:07:35.5]} 37. Kg2 {[%clk 0:04:02.5]} 37... g4 {[%clk 0:07:29.7]}
38. Ng3 {[%clk 0:03:59.5]} 38... Rc8 {[%clk 0:07:26.2]} 39. Re4 {[%clk
0:03:55.4]} 39... Rcf8 {[%clk 0:07:18.1]} 40. Re2 {[%clk 0:03:49.8]} 40... Rc8
{[%clk 0:07:14]} 41. Rec2 {[%clk 0:03:46.6]} 41... Rcf8 {[%clk 0:07:11.1]} 42.
b5 {[%clk 0:03:46.7]} 42... axb5 {[%clk 0:07:08.2]} 43. axb5 {[%clk 0:03:48]}
43... Rf3 {[%clk 0:06:56.4]} 44. b6 {[%clk 0:03:16.5]} 44... Kd7 {[%clk
0:06:56.6]} 45. Ne4 {[%clk 0:03:11.3]} 45... Kc6 {[%clk 0:06:52.5]} 46. Rb2
{[%clk 0:03:09.8]} 46... R3f4 {[%clk 0:06:44.9]} 47. Nd2 {[%clk 0:02:41.7]}
47... Bh4 {[%clk 0:06:20.4]} 48. b7 {[%clk 0:02:31.6]} 48... Rf2+ {[%clk
0:06:09.9]} 49. Kg1 {[%clk 0:02:31.6]} 49... Rb8 {[%clk 0:05:56.8]} 50. Rcb3
{[%clk 0:02:27]} 50... Re2 {[%clk 0:05:47.9]} 51. Kf1 {[%clk 0:02:20.7]} 51...
Re1+ {[%clk 0:05:45.9]} 52. Kg2 {[%clk 0:02:21.9]} 52... e4 {[%clk 0:05:45.8]}
53. Nb1 {[%clk 0:01:42.5]} 53... Bf6 {[%clk 0:05:41.4]} 54. Rb6+ {[%clk
0:01:34.7]} 54... Kc7 {[%clk 0:05:34.4]} 55. R2b3 {[%clk 0:01:33]} 55... Bd4
{[%clk 0:05:31.9]} 56. R6b5 {[%clk 0:01:26.8]} 56... Rg1+ {[%clk 0:05:25.1]} 57.
Kh2 {[%clk 0:01:27.1]} 57... Rh8+ {[%clk 0:05:26.1]} 0-1

[Event "GrandPrix_29.05"]
[Site "Chess.com"]
[Date "2020.05.29"]
[Round "5"]
[White "cukus"]
[Black "AliKa2810"]
[Result "1/2-1/2"]
[WhiteElo "2167"]
[BlackElo "2065"]
[TimeControl "600+2"]
[EndTime "11:27:00 PDT"]
[Termination "Game drawn by agreement"]

1. e4 {[%clk 0:10:01.9]} 1... e5 {[%clk 0:09:59.7]} 2. Nf3 {[%clk 0:10:02.4]}
2... Nf6 {[%clk 0:10:00.9]} 3. Nxe5 {[%clk 0:10:03]} 3... d6 {[%clk 0:10:01.9]}
4. Nf3 {[%clk 0:10:04.2]} 4... Nxe4 {[%clk 0:10:02.9]} 5. Nc3 {[%clk 0:10:05.4]}
5... Nxc3 {[%clk 0:10:03.9]} 6. dxc3 {[%clk 0:10:07.3]} 6... Be7 {[%clk
0:10:05.1]} 7. Be3 {[%clk 0:10:07.7]} 7... Nc6 {[%clk 0:10:02.6]} 8. Qd2 {[%clk
0:10:07.9]} 8... Be6 {[%clk 0:10:02.9]} 9. O-O-O {[%clk 0:10:08.8]} 9... Qd7
{[%clk 0:10:03]} 10. Kb1 {[%clk 0:09:45.9]} 10... a6 {[%clk 0:10:03]} 11. h3
{[%clk 0:09:44.2]} 11... O-O-O {[%clk 0:10:03.2]} 12. Nd4 {[%clk 0:09:41.1]}
12... Nxd4 {[%clk 0:10:01.6]} 13. Qxd4 {[%clk 0:09:37.5]} 13... Bf6 {[%clk
0:08:25.8]} 14. Qb4 {[%clk 0:08:04]} 14... Qc6 {[%clk 0:06:13.5]} 15. Rg1 {[%clk
0:07:51.2]} 15... Rhe8 {[%clk 0:06:12.6]} 16. g4 {[%clk 0:07:43.3]} 16... h6
{[%clk 0:05:53.9]} 17. Qa5 {[%clk 0:07:01.6]} 17... Bc4 {[%clk 0:05:35.6]} 18.
Bg2 {[%clk 0:06:25.6]} 18... Qb5 {[%clk 0:05:32.8]} 19. Qxb5 {[%clk 0:06:23.7]}
19... axb5 {[%clk 0:05:33.5]} 20. b3 {[%clk 0:06:06.9]} 20... Be6 {[%clk
0:05:29.6]} 21. Bd4 {[%clk 0:06:00.1]} 21... Bxd4 {[%clk 0:05:26]} 22. cxd4
{[%clk 0:05:59.1]} 22... b4 {[%clk 0:05:27.3]} 23. d5 {[%clk 0:05:21.8]} 23...
Bd7 {[%clk 0:05:27.9]} 24. Rd4 {[%clk 0:05:22]} 24... Re2 {[%clk 0:05:24.9]} 25.
Rf1 {[%clk 0:04:30.8]} 25... Rde8 {[%clk 0:05:25.8]} 26. Rxb4 {[%clk 0:04:20.4]}
26... g5 {[%clk 0:05:26.9]} 27. Kb2 {[%clk 0:03:24.4]} 27... f5 {[%clk
0:05:27.2]} 28. Bf3 {[%clk 0:03:11]} 28... Re1 {[%clk 0:05:10.5]} 29. Rxe1
{[%clk 0:03:01.3]} 29... Rxe1 {[%clk 0:05:12.4]} 30. gxf5 {[%clk 0:02:41.3]}
30... Bxf5 {[%clk 0:05:14.3]} 31. Bg4 {[%clk 0:02:31.1]} 31... Re5 {[%clk
0:04:00.9]} 32. f4 {[%clk 0:02:03.1]} 32... gxf4 {[%clk 0:03:31.4]} 33. Rxf4
{[%clk 0:02:00.2]} 33... Bxg4 {[%clk 0:03:32.6]} 34. hxg4 {[%clk 0:01:42.2]}
34... Rxd5 {[%clk 0:03:33.5]} 35. Rf6 {[%clk 0:01:38.9]} 35... h5 {[%clk
0:03:33.2]} 36. gxh5 {[%clk 0:01:40]} 36... Rxh5 {[%clk 0:03:33.9]} 1/2-1/2

[Event "GrandPrix_29.05"]
[Site "Chess.com"]
[Date "2020.05.29"]
[Round "5"]
[White "chessfreak35"]
[Black "Malysch"]
[Result "1/2-1/2"]
[WhiteElo "2451"]
[BlackElo "2342"]
[TimeControl "600+2"]
[EndTime "11:27:01 PDT"]
[Termination "Game drawn by repetition"]

1. e4 {[%clk 0:10:01.9]} 1... Nf6 {[%clk 0:09:47.2]} 2. e5 {[%clk 0:10:02.2]}
2... Nd5 {[%clk 0:09:47.9]} 3. d4 {[%clk 0:10:03.5]} 3... d6 {[%clk 0:09:48.6]}
4. c4 {[%clk 0:10:03.1]} 4... Nb6 {[%clk 0:09:49.5]} 5. exd6 {[%clk 0:10:04.3]}
5... exd6 {[%clk 0:09:51.4]} 6. Nc3 {[%clk 0:10:04]} 6... Be7 {[%clk 0:09:51.9]}
7. Bd3 {[%clk 0:10:03.2]} 7... Nc6 {[%clk 0:09:52]} 8. Nge2 {[%clk 0:10:03.2]}
8... Bg4 {[%clk 0:09:52.3]} 9. d5 {[%clk 0:09:42.2]} 9... Ne5 {[%clk 0:09:43.6]}
10. O-O {[%clk 0:09:43.4]} 10... O-O {[%clk 0:09:27.3]} 11. f3 {[%clk
0:09:38.9]} 11... Bh5 {[%clk 0:09:22.8]} 12. Nf4 {[%clk 0:09:37.2]} 12... Bg6
{[%clk 0:09:21.1]} 13. Bxg6 {[%clk 0:09:25.9]} 13... hxg6 {[%clk 0:09:23]} 14.
b3 {[%clk 0:09:22.1]} 14... Bf6 {[%clk 0:09:17.6]} 15. Qc2 {[%clk 0:09:20.1]}
15... a5 {[%clk 0:08:45.2]} 16. Bb2 {[%clk 0:08:43.3]} 16... a4 {[%clk
0:08:30.9]} 17. Ne4 {[%clk 0:08:43.8]} 17... Nbd7 {[%clk 0:08:25.7]} 18. Bc3
{[%clk 0:08:28.4]} 18... Nc5 {[%clk 0:08:08.3]} 19. Nxc5 {[%clk 0:07:47.3]}
19... dxc5 {[%clk 0:08:10.2]} 20. Rae1 {[%clk 0:07:48.6]} 20... Re8 {[%clk
0:08:02.9]} 21. Re4 {[%clk 0:07:44.8]} 21... Qd6 {[%clk 0:07:29.3]} 22. Rfe1
{[%clk 0:07:35.2]} 22... Re7 {[%clk 0:07:24.9]} 23. Nd3 {[%clk 0:06:27.3]} 23...
Rae8 {[%clk 0:05:59.8]} 24. Nxe5 {[%clk 0:06:00.4]} 24... Bxe5 {[%clk
0:06:01.7]} 25. Bxe5 {[%clk 0:06:01.7]} 25... Rxe5 {[%clk 0:06:00]} 26. bxa4
{[%clk 0:06:02.8]} 26... f5 {[%clk 0:05:43.4]} 27. R4e2 {[%clk 0:05:31.3]} 27...
Rxe2 {[%clk 0:05:25.5]} 28. Rxe2 {[%clk 0:05:30.7]} 28... Rxe2 {[%clk
0:05:27.4]} 29. Qxe2 {[%clk 0:05:32.1]} 29... Qf4 {[%clk 0:05:28.5]} 30. g3
{[%clk 0:05:00]} 30... Qd4+ {[%clk 0:05:20.9]} 31. Kg2 {[%clk 0:04:59.8]} 31...
Kh7 {[%clk 0:05:21.1]} 32. Kh3 {[%clk 0:04:12.7]} 32... b6 {[%clk 0:05:10.2]}
33. f4 {[%clk 0:04:04.4]} 33... Qa1 {[%clk 0:04:50.2]} 34. Kg2 {[%clk
0:03:03.3]} 34... Qc3 {[%clk 0:04:45.3]} 35. Kh3 {[%clk 0:02:46.3]} 35... Qc1
{[%clk 0:04:32.5]} 36. Kh4 {[%clk 0:02:03.8]} 36... Qc3 {[%clk 0:04:14.2]} 37.
Kh3 {[%clk 0:01:20.6]} 37... Qc1 {[%clk 0:04:08.2]} 38. Kh4 {[%clk 0:01:14.2]}
38... Qc3 {[%clk 0:04:08]} 39. Kh3 {[%clk 0:01:13.1]} 1/2-1/2

[Event "GrandPrix_29.05"]
[Site "Chess.com"]
[Date "2020.05.29"]
[Round "5"]
[White "ZefirKa"]
[Black "tianachess"]
[Result "1-0"]
[WhiteElo "2105"]
[BlackElo "2053"]
[TimeControl "600+2"]
[EndTime "11:27:04 PDT"]
[Termination "ZefirKa won by resignation"]

1. e4 {[%clk 0:10:01.9]} 1... Nf6 {[%clk 0:09:59.5]} 2. e5 {[%clk 0:10:02.8]}
2... Nd5 {[%clk 0:09:59.8]} 3. d4 {[%clk 0:10:04.5]} 3... d6 {[%clk 0:10:00.5]}
4. Nf3 {[%clk 0:10:05.6]} 4... Nc6 {[%clk 0:10:00.6]} 5. c4 {[%clk 0:09:13.5]}
5... Nb6 {[%clk 0:10:00.4]} 6. exd6 {[%clk 0:09:14.7]} 6... exd6 {[%clk
0:10:00.7]} 7. h3 {[%clk 0:09:14.2]} 7... Bf5 {[%clk 0:09:56.1]} 8. Be2 {[%clk
0:09:10.4]} 8... Be7 {[%clk 0:09:55.9]} 9. O-O {[%clk 0:09:10.6]} 9... O-O
{[%clk 0:09:51.9]} 10. Be3 {[%clk 0:09:02.1]} 10... Nb4 {[%clk 0:09:08.8]} 11.
Na3 {[%clk 0:08:58.9]} 11... Bf6 {[%clk 0:08:47.7]} 12. Qd2 {[%clk 0:08:28.8]}
12... a5 {[%clk 0:08:39.7]} 13. d5 {[%clk 0:08:11.9]} 13... Na4 {[%clk
0:08:10.4]} 14. Nd4 {[%clk 0:08:01.2]} 14... Bg6 {[%clk 0:08:06.9]} 15. Nab5
{[%clk 0:06:47.6]} 15... Nc5 {[%clk 0:04:42.1]} 16. a3 {[%clk 0:06:38.9]} 16...
Nbd3 {[%clk 0:04:41]} 17. b4 {[%clk 0:06:21.9]} 17... axb4 {[%clk 0:04:35.9]}
18. axb4 {[%clk 0:06:23.8]} 18... Rxa1 {[%clk 0:04:36]} 19. Rxa1 {[%clk
0:06:25.7]} 19... c6 {[%clk 0:03:57.2]} 20. dxc6 {[%clk 0:05:42.9]} 20... bxc6
{[%clk 0:03:57.1]} 21. Nxc6 {[%clk 0:05:41.3]} 21... Nb3 {[%clk 0:03:50.7]} 22.
Qd1 {[%clk 0:04:56.7]} 22... Qd7 {[%clk 0:03:23.2]} 23. Ra6 {[%clk 0:04:56.8]}
23... Qc8 {[%clk 0:01:11.8]} 24. Rb6 {[%clk 0:04:24.8]} 24... Bd8 {[%clk
0:00:10.8]} 25. Bxd3 {[%clk 0:04:15.6]} 25... Bxb6 {[%clk 0:00:09.3]} 26. Ne7+
{[%clk 0:04:16.3]} 26... Kh8 {[%clk 0:00:09.5]} 27. Nxc8 {[%clk 0:04:17.5]} 1-0

[Event "GrandPrix_29.05"]
[Site "Chess.com"]
[Date "2020.05.29"]
[Round "5"]
[White "nikosgal"]
[Black "ArnaudovP"]
[Result "1/2-1/2"]
[WhiteElo "2500"]
[BlackElo "2426"]
[TimeControl "600+2"]
[EndTime "11:27:11 PDT"]
[Termination "Game drawn by agreement"]

1. d4 {[%clk 0:10:01.9]} 1... Nf6 {[%clk 0:09:58.3]} 2. c4 {[%clk 0:10:01.6]}
2... Nc6 {[%clk 0:09:58.1]} 3. Nf3 {[%clk 0:09:59.3]} 3... e6 {[%clk 0:09:57.7]}
4. g3 {[%clk 0:09:58.4]} 4... Bb4+ {[%clk 0:09:55]} 5. Nbd2 {[%clk 0:09:57.6]}
5... d5 {[%clk 0:09:53.1]} 6. Bg2 {[%clk 0:09:44.4]} 6... dxc4 {[%clk
0:09:41.6]} 7. O-O {[%clk 0:09:39.2]} 7... Bxd2 {[%clk 0:09:38.1]} 8. Bxd2
{[%clk 0:09:36.9]} 8... Nxd4 {[%clk 0:09:30.6]} 9. Nxd4 {[%clk 0:09:21.2]} 9...
Qxd4 {[%clk 0:09:28.2]} 10. Qc2 {[%clk 0:08:42.7]} 10... O-O {[%clk 0:09:13.4]}
11. Bb4 {[%clk 0:08:30.2]} 11... c5 {[%clk 0:08:15.2]} 12. Rfd1 {[%clk
0:08:27.7]} 12... Qe5 {[%clk 0:08:13.9]} 13. Bc3 {[%clk 0:08:28]} 13... Qf5
{[%clk 0:08:09.3]} 14. e4 {[%clk 0:08:18.3]} 14... Qg6 {[%clk 0:08:05.3]} 15.
Be5 {[%clk 0:08:18.1]} 15... b6 {[%clk 0:07:35.1]} 16. Qxc4 {[%clk 0:08:16.2]}
16... Bb7 {[%clk 0:07:31.9]} 17. Bxf6 {[%clk 0:08:11.8]} 17... gxf6 {[%clk
0:07:29.4]} 18. Rd7 {[%clk 0:08:10.5]} 18... Bc6 {[%clk 0:07:23.9]} 19. Rd6
{[%clk 0:08:11.6]} 19... Rac8 {[%clk 0:07:17.6]} 20. Rad1 {[%clk 0:08:13.1]}
20... b5 {[%clk 0:06:44.2]} 21. Qxc5 {[%clk 0:08:07.9]} 21... Bxe4 {[%clk
0:06:38.1]} 22. Qxb5 {[%clk 0:08:05.1]} 22... Bxg2 {[%clk 0:06:35.9]} 23. Kxg2
{[%clk 0:08:07]} 23... Qe4+ {[%clk 0:05:40.2]} 24. Kg1 {[%clk 0:08:06.8]} 24...
Rb8 {[%clk 0:05:25.7]} 25. Qc5 {[%clk 0:06:56]} 25... Rxb2 {[%clk 0:05:21.2]}
26. Qxa7 {[%clk 0:06:56.1]} 26... Ra8 {[%clk 0:04:30.5]} 27. Qe7 {[%clk
0:04:12]} 27... Qf5 {[%clk 0:03:49.6]} 28. Rf1 {[%clk 0:03:57.8]} 28... Rbxa2
{[%clk 0:03:38.2]} 29. Rd7 {[%clk 0:03:42]} 29... Qg6 {[%clk 0:03:31.1]} 30.
Rfd1 {[%clk 0:03:37.3]} 30... Kg7 {[%clk 0:03:09.5]} 31. Qxe6 {[%clk 0:03:30.6]}
31... Ra1 {[%clk 0:02:57.9]} 32. Rxa1 {[%clk 0:02:22]} 32... Rxa1+ {[%clk
0:02:56.2]} 33. Kg2 {[%clk 0:02:23.3]} 33... Ra4 {[%clk 0:02:53.4]} 34. Qd5
{[%clk 0:02:04.6]} 34... Qe4+ {[%clk 0:02:51.7]} 1/2-1/2

[Event "GrandPrix_29.05"]
[Site "Chess.com"]
[Date "2020.05.29"]
[Round "5"]
[White "switlave"]
[Black "Kildepiotr"]
[Result "0-1"]
[WhiteElo "2008"]
[BlackElo "2280"]
[TimeControl "600+2"]
[EndTime "11:27:15 PDT"]
[Termination "Kildepiotr won by resignation"]

1. d4 {[%clk 0:10:01.9]} 1... c5 {[%clk 0:09:50.4]} 2. d5 {[%clk 0:09:59.7]}
2... e5 {[%clk 0:09:51.1]} 3. Nc3 {[%clk 0:10:00.4]} 3... d6 {[%clk 0:09:51.8]}
4. e4 {[%clk 0:10:01.5]} 4... Be7 {[%clk 0:09:53]} 5. Bb5+ {[%clk 0:09:50.5]}
5... Nd7 {[%clk 0:09:53.4]} 6. a4 {[%clk 0:09:51.5]} 6... Bg5 {[%clk 0:09:53.5]}
7. h4 {[%clk 0:09:30.2]} 7... Bxc1 {[%clk 0:09:34]} 8. Qxc1 {[%clk 0:09:31]}
8... Ne7 {[%clk 0:09:34.5]} 9. Nf3 {[%clk 0:08:58.8]} 9... O-O {[%clk
0:09:32.5]} 10. g4 {[%clk 0:08:45]} 10... Ng6 {[%clk 0:09:32.3]} 11. Ne2 {[%clk
0:08:14.1]} 11... Nf6 {[%clk 0:09:32.5]} 12. h5 {[%clk 0:08:11.9]} 12... Bxg4
{[%clk 0:09:32.5]} 13. Ng5 {[%clk 0:07:30.7]} 13... Nxh5 {[%clk 0:09:03.4]} 14.
f3 {[%clk 0:07:05.4]} 14... Nhf4 {[%clk 0:08:52.9]} 15. Nxh7 {[%clk 0:06:45.9]}
15... Bxf3 {[%clk 0:08:52.7]} 16. Rh2 {[%clk 0:06:24.6]} 16... Bxe4 {[%clk
0:08:36.4]} 17. Ng3 {[%clk 0:06:11.7]} 17... Bxd5 {[%clk 0:08:24.8]} 18. Qd2
{[%clk 0:05:48.4]} 18... Re8 {[%clk 0:07:25.3]} 19. Bxe8 {[%clk 0:05:46.5]}
19... Qxe8 {[%clk 0:07:25.9]} 20. Nf5 {[%clk 0:05:12.6]} 20... Qe6 {[%clk
0:07:13]} 21. Ne3 {[%clk 0:05:13.4]} 21... Bc6 {[%clk 0:06:59.8]} 22. O-O-O
{[%clk 0:04:30]} 22... Qa2 {[%clk 0:06:36.8]} 23. Qxd6 {[%clk 0:04:25.9]} 23...
Qa1+ {[%clk 0:06:32.1]} 24. Kd2 {[%clk 0:04:26.7]} 24... Qxb2 {[%clk 0:06:33.1]}
25. Nf5 {[%clk 0:04:24.6]} 25... Qb4+ {[%clk 0:05:33.9]} 26. Kc1 {[%clk
0:03:55.6]} 26... Ne2+ {[%clk 0:05:27.3]} 27. Rxe2 {[%clk 0:03:54.2]} 27... Qf4+
{[%clk 0:05:28.2]} 28. Ne3 {[%clk 0:03:45.1]} 28... Kxh7 {[%clk 0:05:27.5]} 29.
Qxc5 {[%clk 0:03:38.3]} 29... Qxa4 {[%clk 0:05:19.5]} 30. Rh2+ {[%clk
0:02:56.1]} 30... Kg8 {[%clk 0:05:19.6]} 31. Rd3 {[%clk 0:02:19.3]} 31... Qa1+
{[%clk 0:04:35.8]} 32. Kd2 {[%clk 0:02:20.1]} 32... Qg1 {[%clk 0:04:35.9]} 33.
Rh5 {[%clk 0:02:01.4]} 33... Nf4 {[%clk 0:04:30.8]} 34. Qxe5 {[%clk 0:01:55.6]}
34... Qf2+ {[%clk 0:04:12.9]} 35. Kc3 {[%clk 0:01:36.1]} 35... Nxd3 {[%clk
0:03:41]} 36. cxd3 {[%clk 0:01:30.3]} 36... Re8 {[%clk 0:03:40.3]} 37. Ng4
{[%clk 0:01:20.4]} 0-1

[Event "GrandPrix_29.05"]
[Site "Chess.com"]
[Date "2020.05.29"]
[Round "5"]
[White "Olghita64"]
[Black "larrylarsen"]
[Result "1-0"]
[WhiteElo "2048"]
[BlackElo "1179"]
[TimeControl "600+2"]
[EndTime "11:27:19 PDT"]
[Termination "Olghita64 won on time"]

1. Nf3 {[%clk 0:10:01.9]} 1... Nf6 {[%clk 0:09:59.3]} 2. c4 {[%clk 0:10:01.9]}
2... c5 {[%clk 0:09:53.5]} 3. d4 {[%clk 0:09:57.7]} 3... cxd4 {[%clk 0:09:52]}
4. Nxd4 {[%clk 0:09:58]} 4... e6 {[%clk 0:09:52.5]} 5. Nc3 {[%clk 0:09:47]} 5...
a6 {[%clk 0:09:48.1]} 6. g3 {[%clk 0:09:17.4]} 6... Nc6 {[%clk 0:09:44.9]} 7.
Bg2 {[%clk 0:09:17]} 7... Bc5 {[%clk 0:09:28.6]} 8. Nb3 {[%clk 0:09:12.5]} 8...
Be7 {[%clk 0:09:25.9]} 9. O-O {[%clk 0:09:12]} 9... d6 {[%clk 0:09:20.7]} 10.
Bf4 {[%clk 0:09:08.1]} 10... O-O {[%clk 0:09:12]} 11. Qd2 {[%clk 0:09:05.3]}
11... Ne5 {[%clk 0:08:04.9]} 12. Bxe5 {[%clk 0:08:38.4]} 12... dxe5 {[%clk
0:08:03.2]} 13. Qxd8 {[%clk 0:08:38.8]} 13... Rxd8 {[%clk 0:08:00.1]} 14. Rfd1
{[%clk 0:08:39.2]} 14... Nd7 {[%clk 0:07:12.3]} 15. Ne4 {[%clk 0:08:30]} 15...
Nf8 {[%clk 0:06:36.5]} 16. Rxd8 {[%clk 0:08:20.1]} 16... Bxd8 {[%clk 0:06:35.7]}
17. Nd6 {[%clk 0:08:20.3]} 17... Rb8 {[%clk 0:06:18.1]} 18. c5 {[%clk
0:08:03.2]} 18... b6 {[%clk 0:05:35.7]} 19. c6 {[%clk 0:06:58.9]} 19... Bc7
{[%clk 0:05:21.2]} 20. Ne8 {[%clk 0:06:59]} 20... Bd8 {[%clk 0:04:12.5]} 21. c7
{[%clk 0:06:58.5]} 21... Bxc7 {[%clk 0:04:13.1]} 22. Nxc7 {[%clk 0:06:59]} 22...
a5 {[%clk 0:03:28.1]} 23. Rd1 {[%clk 0:06:47]} 23... Bb7 {[%clk 0:03:21.2]} 24.
Bxb7 {[%clk 0:06:42.9]} 24... Rxb7 {[%clk 0:03:20.8]} 25. Nb5 {[%clk 0:06:40.5]}
25... g6 {[%clk 0:03:08.7]} 26. Rd8 {[%clk 0:06:38.6]} 26... a4 {[%clk
0:02:28.4]} 27. Nc1 {[%clk 0:06:29.2]} 27... f6 {[%clk 0:02:17.7]} 28. Nd3
{[%clk 0:06:21.3]} 28... h5 {[%clk 0:01:46.1]} 29. Kf1 {[%clk 0:06:17.4]} 29...
h4 {[%clk 0:01:30.1]} 30. Ke1 {[%clk 0:06:05.2]} 30... hxg3 {[%clk 0:01:29.8]}
31. hxg3 {[%clk 0:06:05.6]} 31... Rh7 {[%clk 0:01:29.9]} 32. Kd2 {[%clk
0:06:04.6]} 32... Rh1 {[%clk 0:01:17]} 33. Ra8 {[%clk 0:05:39.7]} 33... e4
{[%clk 0:01:00.7]} 34. Nf4 {[%clk 0:05:37.1]} 34... Kg7 {[%clk 0:00:55.1]} 35.
Ra7+ {[%clk 0:05:26.6]} 35... Kh6 {[%clk 0:00:54.7]} 36. Nd6 {[%clk 0:05:22.9]}
36... Kg5 {[%clk 0:00:28.4]} 37. Nxe4+ {[%clk 0:05:19.1]} 37... Kf5 {[%clk
0:00:26.5]} 38. Nd6+ {[%clk 0:05:10.9]} 38... Kg4 {[%clk 0:00:21.5]} 39. Rxa4
{[%clk 0:05:03.1]} 1-0